fUSD/lending_fUSD_20250201
["ID","MTS","AMOUNT","RATE_DAILY","PERIOD"]
[351184009,1738399867980,-1273.65,0.00017671,2]
[351184010,1738399867989,-879.55,0.00017671,2]
[351184011,1738399867998,-601.78,0.00017671,2]
[351184012,1738399868009,-1015.54,0.00017671,2]
[351184013,1738399868018,-2958.79,0.00017671,2]
[351184014,1738399868028,-500.0,0.00017671,2]
[351184015,1738399868037,-761.06,0.00017671,2]
[351184016,1738399868046,-572.04,0.00017671,2]
[351184017,1738399868055,-500.0,0.00017671,2]
[351184018,1738399868065,-621.1,0.00017671,2]
[351184019,1738399868074,-3925.91,0.00017671,2]
[351184020,1738399868188,-150.0,0.00017672,2]
[351184021,1738399868198,-150.0,0.00017675,2]
[351184022,1738399868207,-150.0,0.00017683,2]
[351184023,1738399868217,-150.0,0.00017697,2]
[351184024,1738399868226,-150.0,0.00017699,2]
[351184025,1738399868235,-150.0,0.00017699,2]
[351184026,1738399868245,-150.0,0.00017703,2]
[351184027,1738399868254,-150.0,0.00017704,2]
[351184028,1738399868263,-150.0,0.00017705,2]
[351184029,1738399868272,-150.0,0.00017705,2]
[351184030,1738399868282,-150.0,0.00017709,2]
[351184031,1738399868291,-150.0,0.00017712,2]
[351184032,1738399868300,-1000.0,0.00017724,2]
[351184033,1738399868312,-1132.66,0.00017726,2]
[351184034,1738399868321,-1132.66,0.00017726,2]
[351184035,1738399868330,-1132.66,0.00017726,2]
[351184036,1738399868340,-1132.66,0.00017726,2]
[351184037,1738399868349,-1132.66,0.00017726,2]
[351184038,1738399868358,-1132.66,0.00017726,2]
[351184039,1738399868368,-1132.66,0.00017726,2]
[351184040,1738399868377,-1132.66,0.00017726,2]
[351184041,1738399868387,-1132.66,0.00017726,2]
[351184042,1738399868396,-1132.66,0.00017726,2]
[351184043,1738399868405,-1132.66,0.00017726,2]
[351184044,1738399868415,-1132.66,0.00017726,2]
[351184045,1738399868424,-1132.66,0.00017726,2]
[351184046,1738399868434,-1132.66,0.00017726,2]
[351184047,1738399868443,-1132.66,0.00017726,2]
[351184048,1738399868453,-1132.66,0.00017726,2]
[351184049,1738399868462,-1132.66,0.00017726,2]
[351184050,1738399868471,-1132.66,0.00017726,2]
[351184051,1738399868480,-1132.66,0.00017726,2]
[351184052,1738399868490,-1132.66,0.00017726,2]
[351184053,1738399868499,-1132.66,0.00017726,2]
[351184054,1738399868509,-1132.66,0.00017726,2]
[351184055,1738399868519,-1132.66,0.00017726,2]
[351184056,1738399868528,-1132.82,0.00017726,2]
[351184057,1738399868538,-150.0,0.00017732,2]
[351184058,1738399868547,-150.0,0.00017734,2]
[351184059,1738399868556,-150.0,0.00017747,2]
[351184060,1738399868565,-5604.0,0.00017753,2]
[351184061,1738399868575,-150.0,0.00017762,2]
[351184062,1738399868584,-1405.87757458,0.00017762,2]
[351184063,1738399868595,-150.0,0.00017765,2]
[351184064,1738399868605,-150.0,0.00017767,2]
[351184065,1738399868615,-150.0,0.00017768,2]
[351184066,1738399868625,-150.0,0.00017776,2]
[351184067,1738399868635,-150.0,0.00017778,2]
[351184068,1738399868644,-150.0,0.00017783,2]
[351184069,1738399868654,-150.0,0.00017785,2]
[351184070,1738399868663,-150.0,0.00017786,2]
[351184071,1738399868672,-11594.6502713,0.00017788,2]
[351184072,1738399868682,-4839.055473,0.00017788,2]
[351184073,1738399868695,-1135.7681304,0.00017788,2]
[351184074,1738399868705,-786.77543715,0.00017789,2]
[351184075,1738399868715,-150.0,0.00017789,2]
[351184076,1738399868724,-150.0,0.00017794,2]
[351184077,1738399868735,-150.0,0.00017796,2]
[351184078,1738399868745,-3000.0,0.00017798,2]
[351184079,1738399868755,-150.0,0.000178,2]
[351184080,1738399868764,-1600.0,0.000178,6]
[351184081,1738399868774,-150.0,0.00017801,2]
[351184082,1738399868784,-150.0,0.00017804,2]
[351184083,1738399868793,-150.0,0.00017805,2]
[351184084,1738399868803,-1696.26,0.00017805,2]
[351184085,1738399868812,-2076.17,0.00017805,2]
[351184086,1738399868822,-500.0,0.00017805,2]
[351184087,1738399868832,-627.0,0.00017805,2]
[351184088,1738399868842,-1370.4,0.00017805,2]
[351184089,1738399868851,-2146.42,0.00017805,2]
[351184090,1738399868862,-1850.47,0.00017805,2]
[351184091,1738399868871,-1660.38,0.00017805,2]
[351184092,1738399868880,-750.93,0.00017805,2]
[351184093,1738399868890,-574.44,0.00017805,2]
[351184094,1738399868900,-813.13,0.00017805,2]
[351184095,1738399868909,-875.01,0.00017805,2]
[351184096,1738399868918,-691.33,0.00017805,2]
[351184097,1738399868928,-3841.69,0.00017805,2]
[351184098,1738399868937,-1160.0,0.00017805,2]
[351184099,1738399868947,-500.0,0.00017806,2]
[351184100,1738399868956,-597.53,0.00017806,2]
[351184101,1738399868967,-602.98,0.00017806,2]
[351184102,1738399868977,-500.0,0.00017806,2]
[351184103,1738399868987,-500.0,0.00017806,2]
[351184104,1738399868997,-500.0,0.00017806,2]
[351184105,1738399869006,-500.0,0.00017806,2]
[351184106,1738399869016,-643.59,0.00017806,2]
[351184107,1738399869027,-582.1,0.00017806,2]
[351184108,1738399869036,-678.42,0.00017806,2]
[351184109,1738399869045,-500.0,0.00017806,2]
[351184110,1738399869055,-500.0,0.00017806,2]
[351184111,1738399869064,-500.0,0.00017806,2]
[351184112,1738399869073,-500.0,0.00017806,2]
[351184113,1738399869083,-662.8,0.00017806,2]
[351184114,1738399869093,-500.0,0.00017806,2]
[351184115,1738399869102,-525.12,0.00017806,2]
[351184116,1738399869112,-500.0,0.00017806,2]
[351184117,1738399869121,-548.04,0.00017806,2]
[351184118,1738399869130,-512.17614777,0.00017806,2]
[351184119,1738399869139,-618.08,0.00017806,2]
[351184120,1738399869149,-602.13,0.00017806,2]
[351184121,1738399869158,-535.9,0.00017806,2]
[351184122,1738399869168,-553.2,0.00017806,2]
[351184123,1738399869177,-500.0,0.00017806,2]
[351184124,1738399869190,-500.0,0.00017806,2]
[351184125,1738399869200,-817.74,0.00017806,2]
[351184126,1738399869210,-631.93,0.00017806,2]
[351184127,1738399869219,-605.11,0.00017806,2]
[351184128,1738399869229,-963.48,0.00017806,2]
[351184129,1738399869239,-511.13,0.00017806,2]
[351184130,1738399869248,-942.08,0.00017806,2]
[351184131,1738399869258,-822.79,0.00017806,2]
[351184132,1738399869268,-823.23,0.00017806,2]
[351184133,1738399869278,-1026.47,0.00017806,2]
[351184134,1738399869287,-2387.81,0.00017806,2]
[351184135,1738399869297,-2708.74,0.00017806,2]
[351184136,1738399869306,-500.0,0.00017806,2]
[351184137,1738399869316,-1668.57,0.00017806,2]
[351184138,1738399869325,-500.0,0.00017806,2]
[351184139,1738399869335,-2362.46,0.00017806,2]
[351184140,1738399869346,-683.25,0.00017806,2]
[351184141,1738399869356,-2132.08,0.00017806,2]
[351184142,1738399869365,-743.46,0.00017806,2]
[351184143,1738399869376,-739.76,0.00017806,2]
[351184144,1738399869386,-1903.33,0.00017806,2]
[351184145,1738399869396,-500.0,0.00017806,2]
[351184146,1738399869406,-1879.52,0.00017806,2]
[351184147,1738399869415,-2018.52,0.00017806,2]
[351184148,1738399869425,-791.88,0.00017806,2]
[351184149,1738399869435,-2131.88,0.00017806,2]
[351184150,1738399869445,-500.0,0.00017806,2]
[351184151,1738399869454,-636.58,0.00017806,2]
[351184152,1738399869463,-1092.53,0.00017806,2]
[351184153,1738399869474,-753.21,0.00017806,2]
[351184154,1738399869483,-738.27,0.00017806,2]
[351184155,1738399869492,-500.0,0.00017806,2]
[351184156,1738399869502,-538.96,0.00017806,2]
[351184157,1738399869512,-718.1,0.00017806,2]
[351184158,1738399869523,-569.97,0.00017806,2]
[351184159,1738399869532,-500.0,0.00017806,2]
[351184160,1738399869542,-1038.0,0.00017806,2]
[351184161,1738399869551,-500.0,0.00017806,2]
[351184162,1738399869560,-500.0,0.00017806,2]
[351184163,1738399869569,-500.0,0.00017806,2]
[351184164,1738399869578,-593.68,0.00017806,2]
[351184165,1738399869588,-953.41,0.00017806,2]
[351184166,1738399869598,-500.0,0.00017806,2]
[351184167,1738399869609,-500.0,0.00017806,2]
[351184168,1738399869619,-805.58,0.00017806,2]
[351184169,1738399869632,-604.32,0.00017806,2]
[351184170,1738399869642,-837.34,0.00017806,2]
[351184171,1738399869653,-1283.13,0.00017806,2]
[351184172,1738399869662,-1335.88,0.00017806,2]
[351184173,1738399869672,-2610.26,0.00017806,2]
[351184174,1738399869682,-500.0,0.00017806,2]
[351184175,1738399869694,-4833.97,0.00017806,2]
[351184176,1738399869704,-555.67757762,0.00017806,2]
[351184177,1738399869714,-545.47870075,0.00017806,2]
[351184178,1738399869723,-1465.33,0.00017807,2]
[351184179,1738399869735,-2282.45,0.00017807,2]
[351184180,1738399869745,-904.16,0.00017807,2]
[351184181,1738399869755,-1577.48,0.00017807,2]
[351184182,1738399869766,-500.0,0.00017807,2]
[351184183,1738399869776,-775.84,0.00017807,2]
[351184184,1738399869786,-1352.4,0.00017807,2]
[351184185,1738399869796,-1546.09,0.00017807,2]
[351184186,1738399869806,-1000.0,0.00017807,2]
[351184187,1738399869815,-1383.7,0.00017807,2]
[351184188,1738399869824,-502.04,0.00017807,2]
[351184189,1738399869834,-2390.63,0.00017807,2]
[351184190,1738399869844,-635.47,0.00017807,2]
[351184191,1738399869854,-500.0,0.00017808,2]
[351184192,1738399869863,-423.94011047,0.00017808,2]
[351184193,1738399869872,-575.64557403,0.00017808,2]
[351184194,1738399869881,-500.0,0.00017808,2]
[351184195,1738399869890,-500.0,0.00017808,2]
[351184196,1738399869900,-500.0,0.00017808,2]
[351184197,1738399869910,-500.0,0.00017808,2]
[351184198,1738399869919,-150.0,0.00017808,2]
[351184199,1738399869929,-292.50862009,0.00017808,2]
[351184200,1738399869939,-500.0,0.00017808,2]
[351184201,1738399870042,-528.19,0.00017808,2]
[351184202,1738399870060,-500.0,0.00017808,2]
[351184203,1738399870069,-500.0,0.00017808,2]
[351184204,1738399870078,-347.41,0.00017808,2]
[351184205,1738399870089,-563.40474112,0.00017808,2]
[351184206,1738399870099,-525.68,0.00017808,2]
[351184207,1738399870108,-500.0,0.00017808,2]
[351184208,1738399870118,-761.75,0.00017808,2]
[351184209,1738399870128,-620.94,0.00017808,2]
[351184210,1738399870137,-500.0,0.00017808,2]
[351184211,1738399870147,-688.17,0.00017808,2]
[351184212,1738399870157,-520.63,0.00017808,2]
[351184213,1738399870166,-500.0,0.00017808,2]
[351184214,1738399870176,-546.29,0.00017808,2]
[351184215,1738399870186,-500.0,0.00017808,2]
[351184216,1738399870195,-500.0,0.00017808,2]
[351184217,1738399870204,-706.17,0.00017808,2]
[351184218,1738399870213,-500.0,0.00017808,2]
[351184219,1738399870223,-500.0,0.00017808,2]
[351184220,1738399870232,-500.0,0.00017808,2]
[351184221,1738399870243,-825.63,0.00017808,2]
[351184222,1738399870252,-598.4,0.00017808,2]
[351184223,1738399870262,-500.0,0.00017808,2]
[351184224,1738399870271,-500.0,0.00017808,2]
[351184225,1738399870282,-726.45,0.00017808,2]
[351184226,1738399870291,-500.0,0.00017808,2]
[351184227,1738399870301,-200.0,0.00017808,2]
[351184228,1738399870311,-1157.25,0.00017808,2]
[351184229,1738399870320,-500.0,0.00017808,2]
[351184230,1738399870330,-450.302109,0.00017808,2]
[351184231,1738399870340,-500.0,0.00017808,2]
[351184232,1738399870349,-500.0,0.00017808,2]
[351184233,1738399870359,-623.01,0.00017808,2]
[351184234,1738399870369,-500.0,0.00017808,2]
[351184235,1738399870378,-1237.86,0.00017808,2]
[351184236,1738399870388,-500.0,0.00017808,2]
[351184237,1738399870397,-794.39,0.00017808,2]
[351184238,1738399870407,-500.0,0.00017808,2]
[351184239,1738399870417,-900.16,0.00017808,2]
[351184240,1738399870426,-1144.92,0.00017808,2]
[351184241,1738399870435,-445.813525,0.00017808,2]
[351184242,1738399870444,-500.0,0.00017808,2]
[351184243,1738399870453,-1330.79,0.00017808,2]
[351184244,1738399870463,-873.52,0.00017808,2]
[351184245,1738399870473,-999.0,0.00017808,2]
[351184246,1738399870483,-1097.36,0.00017808,2]
[351184247,1738399870493,-911.22,0.00017808,2]
[351184248,1738399870502,-796.08,0.00017808,2]
[351184249,1738399870511,-500.0,0.00017808,2]
[351184250,1738399870521,-2074.04,0.00017808,2]
[351184251,1738399870530,-667.67,0.00017808,2]
[351184252,1738399870539,-1244.07,0.00017808,2]
[351184253,1738399870548,-2707.78,0.00017808,2]
[351184254,1738399870558,-796.81,0.00017808,2]
[351184255,1738399870567,-1529.22,0.00017808,2]
[351184256,1738399870577,-500.0,0.00017808,2]
[351184257,1738399870587,-917.48,0.00017808,2]
[351184258,1738399870597,-500.0,0.00017808,2]
[351184259,1738399870607,-1471.11,0.00017808,2]
[351184260,1738399870616,-1512.35,0.00017808,2]
[351184261,1738399870626,-818.52,0.00017808,2]
[351184262,1738399870635,-2864.2,0.00017808,2]
[351184263,1738399870644,-1217.27,0.00017808,2]
[351184264,1738399870653,-961.91,0.00017808,2]
[351184265,1738399870663,-1419.87,0.00017808,2]
[351184266,1738399870672,-500.0,0.00017808,2]
[351184267,1738399870682,-580.81,0.00017808,2]
[351184268,1738399870695,-500.0,0.00017808,2]
[351184269,1738399870705,-902.94,0.00017808,2]
[351184270,1738399870716,-1453.2,0.00017808,2]
[351184271,1738399870726,-798.92,0.00017808,2]
[351184272,1738399870736,-2365.3,0.00017808,2]
[351184273,1738399870745,-779.0,0.00017808,2]
[351184274,1738399870756,-633.18,0.00017808,2]
[351184275,1738399870766,-507.66,0.00017808,2]
[351184276,1738399870777,-1043.13,0.00017808,2]
[351184277,1738399870787,-500.0,0.00017808,2]
[351184278,1738399870797,-1567.89,0.00017808,2]
[351184279,1738399870806,-910.38,0.00017808,2]
[351184280,1738399870816,-500.0,0.00017808,2]
[351184281,1738399870826,-1273.65,0.00017808,2]
[351184282,1738399870835,-879.55,0.00017808,2]
[351184283,1738399870846,-601.78,0.00017808,2]
[351184284,1738399870855,-1015.54,0.00017808,2]
[351184285,1738399870865,-2958.79,0.00017808,2]
[351184286,1738399870874,-500.0,0.00017808,2]
[351184287,1738399870883,-761.06,0.00017808,2]
[351184288,1738399870892,-572.04,0.00017808,2]
[351184289,1738399870901,-500.0,0.00017808,2]
[351184290,1738399870911,-621.1,0.00017808,2]
[351184291,1738399870920,-3925.91,0.00017808,2]
[351184292,1738399870930,-150.0,0.0001781,2]
[351184293,1738399870939,-150.0,0.00017813,2]
[351184294,1738399870949,-1000.0,0.00017814,2]
[351184295,1738399870959,-150.0,0.00017816,2]
[351184296,1738399870969,-150.0,0.00017819,2]
[351184297,1738399870977,-150.0,0.00017826,2]
[351184298,1738399870987,-150.0,0.00017827,2]
[351184299,1738399870996,-1160.0,0.00017832,2]
[351184300,1738399871005,-150.0,0.00017835,2]
[351184301,1738399871014,-13194.18316258,0.00017845,2]
[351184302,1738399871024,-1000.0,0.0001785,2]
[351184303,1738399871033,-150.0,0.00017852,2]
[351184304,1738399871042,-1160.0,0.0001786,2]
[351184305,1738399871051,-150.0,0.00017862,2]
[351184306,1738399871061,-382.10591967,0.00017863,2]
[351184307,1738399871071,-1405.87757458,0.00017866,2]
[351184308,1738399871081,-150.0,0.00017868,2]
[351184309,1738399871092,-150.0,0.0001787,2]
[351184310,1738399871101,-150.0,0.00017881,2]
[351184311,1738399871110,-150.0,0.00017882,2]
[351184312,1738399871121,-150.0,0.00017887,2]
[351184313,1738399871130,-1160.0,0.00017887,2]
[351184314,1738399871140,-150.0,0.00017888,2]
[351184315,1738399871149,-150.0,0.00017888,2]
[351184316,1738399871158,-150.0,0.0001789,2]
[351184317,1738399871167,-150.0,0.00017891,2]
[351184318,1738399871177,-150.0,0.00017892,2]
[351184319,1738399871186,-150.0,0.00017892,2]
[351184320,1738399871195,-150.0,0.00017893,2]
[351184321,1738399871205,-150.0,0.00017894,2]
[351184322,1738399871214,-150.0,0.00017895,2]
[351184323,1738399871223,-150.0,0.00017897,2]
[351184324,1738399871232,-2647.56897728,0.000179,2]
[351184325,1738399871242,-11313.29450449,0.000179,2]
[351184326,1738399871252,-2000.0,0.000179,6]
[351184327,1738399871261,-150.0,0.00017902,2]
[351184328,1738399871270,-150.0,0.00017903,2]
[351184329,1738399871279,-150.0,0.00017905,2]
[351184330,1738399871289,-150.0,0.00017907,2]
[351184331,1738399871298,-150.0,0.00017907,2]
[351184332,1738399871307,-150.0,0.00017908,2]
[351184333,1738399871316,-150.0,0.00017913,2]
[351184334,1738399871326,-1160.0,0.00017915,2]
[351184335,1738399871335,-191.05295981,0.00017918,2]
[351184336,1738399871345,-150.0,0.00017919,2]
[351184337,1738399871355,-150.0,0.00017929,2]
[351184338,1738399871364,-150.0,0.0001793,2]
[351184339,1738399871374,-623.64508146,0.0001793,2]
[351184340,1738399871383,-150.0,0.00017935,2]
[351184341,1738399871393,-150.0,0.00017936,2]
[351184342,1738399871402,-150.0,0.00017938,2]
[351184343,1738399871411,-150.0,0.00017939,2]
[351184344,1738399871420,-1160.0,0.00017942,2]
[351184345,1738399871430,-766.37090888,0.00017942,5]
[351184346,1738399871439,-1696.26,0.00017942,2]
[351184347,1738399871449,-2076.17,0.00017942,2]
[351184348,1738399871459,-500.0,0.00017942,2]
[351184349,1738399871469,-627.0,0.00017942,2]
[351184350,1738399871479,-1370.4,0.00017942,2]
[351184351,1738399871488,-2146.42,0.00017942,2]
[351184352,1738399871498,-1850.47,0.00017942,2]
[351184353,1738399871508,-1660.38,0.00017942,2]
[351184354,1738399871518,-750.93,0.00017942,2]
[351184355,1738399871528,-574.44,0.00017942,2]
[351184356,1738399871537,-813.13,0.00017942,2]
[351184357,1738399871547,-875.01,0.00017942,2]
[351184358,1738399871557,-691.33,0.00017942,2]
[351184359,1738399871566,-3841.69,0.00017942,2]
[351184360,1738399871576,-500.0,0.00017943,2]
[351184361,1738399871586,-597.53,0.00017943,2]
[351184362,1738399871596,-602.98,0.00017943,2]
[351184363,1738399871605,-500.0,0.00017943,2]
[351184364,1738399871615,-150.0,0.00017943,2]
[351184365,1738399871624,-500.0,0.00017943,2]
[351184366,1738399871633,-500.0,0.00017943,2]
[351184367,1738399871643,-500.0,0.00017943,2]
[351184368,1738399871652,-643.59,0.00017943,2]
[351184369,1738399871661,-582.1,0.00017943,2]
[351184370,1738399871775,-678.42,0.00017943,2]
[351184371,1738399871785,-500.0,0.00017943,2]
[351184372,1738399871795,-500.0,0.00017943,2]
[351184373,1738399871804,-500.0,0.00017943,2]
[351184374,1738399871814,-500.0,0.00017943,2]
[351184375,1738399871822,-500.0,0.00017943,2]
[351184376,1738399871830,-662.8,0.00017943,2]
[351184377,1738399871838,-500.0,0.00017943,2]
[351184378,1738399871846,-525.12,0.00017943,2]
[351184379,1738399871856,-500.0,0.00017943,2]
[351184380,1738399871866,-548.04,0.00017943,2]
[351184381,1738399871875,-618.08,0.00017943,2]
[351184382,1738399871885,-602.13,0.00017943,2]
[351184383,1738399871894,-535.9,0.00017943,2]
[351184384,1738399871904,-553.2,0.00017943,2]
[351184385,1738399871913,-500.0,0.00017943,2]
[351184386,1738399871923,-500.0,0.00017943,2]
[351184387,1738399871932,-817.74,0.00017943,2]
[351184388,1738399871942,-631.93,0.00017943,2]
[351184389,1738399871952,-605.11,0.00017943,2]
[351184390,1738399871961,-963.48,0.00017943,2]
[351184391,1738399871970,-511.13,0.00017943,2]
[351184392,1738399871979,-942.08,0.00017943,2]
[351184393,1738399871988,-822.79,0.00017943,2]
[351184394,1738399871997,-823.23,0.00017943,2]
[351184395,1738399872007,-1026.47,0.00017943,2]
[351184396,1738399872016,-2387.81,0.00017943,2]
[351184397,1738399872026,-2708.74,0.00017943,2]
[351184398,1738399872035,-500.0,0.00017943,2]
[351184399,1738399872045,-1668.57,0.00017943,2]
[351184400,1738399872054,-500.0,0.00017943,2]
[351184401,1738399872064,-2362.46,0.00017943,2]
[351184402,1738399872073,-683.25,0.00017943,2]
[351184403,1738399872083,-2132.08,0.00017943,2]
[351184404,1738399872093,-743.46,0.00017943,2]
[351184405,1738399872102,-739.76,0.00017943,2]
[351184406,1738399872112,-1903.33,0.00017943,2]
[351184407,1738399872121,-500.0,0.00017943,2]
[351184408,1738399872131,-1879.52,0.00017943,2]
[351184409,1738399872140,-2018.52,0.00017943,2]
[351184410,1738399872150,-791.88,0.00017943,2]
[351184411,1738399872159,-2131.88,0.00017943,2]
[351184412,1738399872169,-500.0,0.00017943,2]
[351184413,1738399872178,-636.58,0.00017943,2]
[351184414,1738399872188,-1092.53,0.00017943,2]
[351184415,1738399872198,-753.21,0.00017943,2]
[351184416,1738399872207,-738.27,0.00017943,2]
[351184417,1738399872216,-500.0,0.00017943,2]
[351184418,1738399872226,-538.96,0.00017943,2]
[351184419,1738399872235,-718.1,0.00017943,2]
[351184420,1738399872244,-569.97,0.00017943,2]
[351184421,1738399872254,-500.0,0.00017943,2]
[351184422,1738399872265,-1038.0,0.00017943,2]
[351184423,1738399872275,-500.0,0.00017943,2]
[351184424,1738399872283,-500.0,0.00017943,2]
[351184425,1738399872293,-500.0,0.00017943,2]
[351184426,1738399872302,-593.68,0.00017943,2]
[351184427,1738399872312,-953.41,0.00017943,2]
[351184428,1738399872321,-500.0,0.00017943,2]
[351184429,1738399872331,-500.0,0.00017943,2]
[351184430,1738399872341,-805.58,0.00017943,2]
[351184431,1738399872351,-604.32,0.00017943,2]
[351184432,1738399872361,-837.34,0.00017943,2]
[351184433,1738399872371,-1283.13,0.00017943,2]
[351184434,1738399872380,-1335.88,0.00017943,2]
[351184435,1738399872390,-2610.26,0.00017943,2]
[351184436,1738399872399,-500.0,0.00017943,2]
[351184437,1738399872408,-4833.97,0.00017943,2]
[351184438,1738399872417,-1465.33,0.00017944,2]
[351184439,1738399872428,-2282.45,0.00017944,2]
[351184440,1738399872438,-904.16,0.00017944,2]
[351184441,1738399872448,-1577.48,0.00017944,2]
[351184442,1738399872458,-500.0,0.00017944,2]
[351184443,1738399872467,-775.84,0.00017944,2]
[351184444,1738399872479,-1352.4,0.00017944,2]
[351184445,1738399872489,-1546.09,0.00017944,2]
[351184446,1738399872498,-1000.0,0.00017944,2]
[351184447,1738399872508,-1383.7,0.00017944,2]
[351184448,1738399872518,-502.04,0.00017944,2]
[351184449,1738399872527,-2390.63,0.00017944,2]
[351184450,1738399872537,-635.47,0.00017944,2]
[351184451,1738399872546,-500.0,0.00017945,2]
[351184452,1738399872555,-500.0,0.00017945,2]
[351184453,1738399872565,-500.0,0.00017945,2]
[351184454,1738399872574,-500.0,0.00017945,2]
[351184455,1738399872584,-500.0,0.00017945,2]
[351184456,1738399872594,-570.01722795,0.00017945,2]
[351184457,1738399872604,-528.19,0.00017945,2]
[351184458,1738399872614,-500.0,0.00017945,2]
[351184459,1738399872623,-500.0,0.00017945,2]
[351184460,1738399872632,-347.41,0.00017945,2]
[351184461,1738399872642,-525.68,0.00017945,2]
[351184462,1738399872651,-500.0,0.00017945,2]
[351184463,1738399872660,-761.75,0.00017945,2]
[351184464,1738399872670,-620.94,0.00017945,2]
[351184465,1738399872679,-500.0,0.00017945,2]
[351184466,1738399872692,-688.17,0.00017945,2]
[351184467,1738399872704,-520.63,0.00017945,2]
[351184468,1738399872713,-500.0,0.00017945,2]
[351184469,1738399872722,-546.29,0.00017945,2]
[351184470,1738399872733,-500.0,0.00017945,2]
[351184471,1738399872743,-500.0,0.00017945,2]
[351184472,1738399872752,-706.17,0.00017945,2]
[351184473,1738399872762,-500.0,0.00017945,2]
[351184474,1738399872774,-500.0,0.00017945,2]
[351184475,1738399872784,-500.0,0.00017945,2]
[351184476,1738399872794,-825.63,0.00017945,2]
[351184477,1738399872804,-598.4,0.00017945,2]
[351184478,1738399872813,-451.00952837,0.00017945,2]
[351184479,1738399872823,-534.44668515,0.00017945,2]
[351184480,1738399872833,-726.45,0.00017945,2]
[351184481,1738399872844,-221.88516826,0.00017945,2]
[351184482,1738399872854,-200.0,0.00017945,2]
[351184483,1738399872864,-1157.25,0.00017945,2]
[351184484,1738399872873,-500.0,0.00017945,2]
[351184485,1738399872882,-588.91411113,0.00017945,2]
[351184486,1738399872892,-450.302109,0.00017945,2]
[351184487,1738399872902,-500.0,0.00017945,2]
[351184488,1738399872913,-623.01,0.00017945,2]
[351184489,1738399872922,-500.0,0.00017945,2]
[351184490,1738399872932,-1237.86,0.00017945,2]
[351184491,1738399872942,-389.27991577,0.00017945,2]
[351184492,1738399872952,-794.39,0.00017945,2]
[351184493,1738399872962,-500.0,0.00017945,2]
[351184494,1738399872971,-900.16,0.00017945,2]
[351184495,1738399872981,-1144.92,0.00017945,2]
[351184496,1738399872991,-445.813525,0.00017945,2]
[351184497,1738399873001,-500.0,0.00017945,2]
[351184498,1738399873012,-1330.79,0.00017945,2]
[351184499,1738399873023,-873.52,0.00017945,2]
[351184500,1738399873033,-1097.36,0.00017945,2]
[351184501,1738399873042,-911.22,0.00017945,2]
[351184502,1738399873052,-796.08,0.00017945,2]
[351184503,1738399873065,-500.0,0.00017945,2]
[351184504,1738399873074,-2074.04,0.00017945,2]
[351184505,1738399873086,-667.67,0.00017945,2]
[351184506,1738399873095,-1244.07,0.00017945,2]
[351184507,1738399873105,-2707.78,0.00017945,2]
[351184508,1738399873115,-796.81,0.00017945,2]